fUSD/lending_fUSD_20260405
["ID","MTS","AMOUNT","RATE_DAILY","PERIOD"]
[419861704,1775431842976,-3272.55,0.00013699,2]
[419861705,1775431842986,-1937.75,0.00013699,2]
[419861706,1775431843006,-200.0,0.00013699,2]
[419861707,1775431843016,-16373.04,0.00013699,2]
[419861708,1775431843027,-166.66,0.00013699,2]
[419861709,1775431843036,-500.0,0.00013699,2]
[419861710,1775431843046,-500.0,0.00013699,2]
[419861711,1775431843056,-500.0,0.00013699,2]
[419861712,1775431843066,-500.0,0.00013699,2]
[419861713,1775431843076,-608.86221876,0.00013699,2]
[419861714,1775431843086,-500.0,0.00013699,2]
[419861715,1775431843096,-500.0,0.00013699,2]
[419861716,1775431843107,-500.0,0.00013699,2]
[419861717,1775431843116,-333.44558322,0.00013699,2]
[419861718,1775431843128,-29999.99,0.00013699,2]
[419861719,1775431843138,-9999.99,0.00013699,2]
[419861720,1775431843147,-22044.56,0.00013699,2]
[419861721,1775431843157,-161.34553167,0.00013699,2]
[419861722,1775431843166,-2958.55545752,0.00013716,2]
[419861723,1775431843176,-37554.7357593,0.00013786,2]
[419861724,1775431843186,-3208.7747313,0.00013794,2]
[419861725,1775431843198,-166.66,0.00013798,2]
[419861726,1775431843208,-166.66,0.00013836,2]
[419861727,1775431843218,-690.08576007,0.00013862,2]
[419861728,1775431843229,-258.04426766,0.00013862,2]
[419861729,1775431843239,-204.690244,0.00013929,2]
[419861730,1775431843249,-585.0,0.00013945,2]
[419861731,1775431843259,-500.0,0.00013973,2]
[419861732,1775431843269,-150.0,0.00013973,2]
[419861733,1775431843279,-150.0,0.00013973,2]
[419861734,1775431843289,-150.0,0.00013973,2]
[419861735,1775431843300,-166.66,0.00013973,2]
[419861736,1775431843310,-332.12,0.00014063,2]
[419861737,1775431843320,-160.0,0.00014088,2]
[419861738,1775431843330,-166.66,0.0001411,2]
[419861739,1775431843340,-239.62,0.00014145,2]
[419861740,1775431843350,-507.0,0.00014173,2]
[419861741,1775431843360,-4966.13784176,0.00014201,2]
[419861742,1775431843370,-1492.7776284,0.00014201,2]
[419861743,1775431843380,-500.0,0.00014203,2]
[419861744,1775431843389,-4684.814814,0.00014204,2]
[419861745,1775431843399,-173.42,0.00014208,2]
[419861746,1775431843408,-166.66,0.00014212,2]
[419861747,1775431843418,-2000.0,0.00014229,2]
[419861748,1775431843428,-239.64,0.00014244,2]
[419861749,1775431843438,-166.66,0.00014247,2]
[419861750,1775431843451,-150.0,0.00014247,2]
[419861751,1775431843461,-150.0,0.00014247,2]
[419861752,1775431843471,-150.0,0.00014247,2]
[419861753,1775431843480,-1000.0,0.00014247,2]
[419861754,1775431843491,-1000.0,0.00014247,2]
[419861755,1775431843506,-1000.0,0.00014247,2]
[419861756,1775431843516,-500.0,0.00014247,2]
[419861757,1775431843526,-823.00574972,0.00014247,2]
[419861758,1775431843537,-1000.0,0.00014247,2]
[419861759,1775431843547,-1000.0,0.00014247,2]
[419861760,1775431843557,-408.74,0.00014313,2]
[419861761,1775431843566,-188.48436554,0.00014313,2]
[419861762,1775431843576,-736.0,0.00014314,2]
[419861763,1775431843587,-881.74,0.00014338,2]
[419861764,1775431843598,-156.25,0.00014377,2]
[419861765,1775431843608,-3272.55,0.00014384,2]
[419861766,1775431843620,-166.66,0.00014384,2]
[419861767,1775431843629,-150.0,0.000144,2]
[419861768,1775431843642,-150.0,0.000144,2]
[419861769,1775431843652,-150.0,0.000144,2]
[419861770,1775431843662,-150.0,0.000144,2]
[419861771,1775431843671,-150.0,0.000144,2]
[419861772,1775431843682,-150.0,0.000144,2]
[419861773,1775431843692,-150.0,0.000144,2]
[419861774,1775431843703,-150.0,0.000144,2]
[419861775,1775431843713,-150.0,0.000144,2]
[419861776,1775431843722,-2958.55545752,0.00014444,2]
[419861777,1775431843732,-4002.0,0.00014452,2]
[419861778,1775431843743,-156.26,0.00014459,2]
[419861779,1775431843753,-232.0,0.00014491,4]
[419861780,1775431843762,-168.0,0.00014491,4]
[419861781,1775431843772,-150.0,0.00014491,4]
[419861782,1775431843782,-232.2918954,0.00014499,4]
[419861783,1775431843793,-326.0,0.00014501,4]
[419861784,1775431843802,-236.0,0.00014501,4]
[419861785,1775431843812,-593.0,0.00014503,4]
[419861786,1775431843822,-3292.0,0.00014503,2]
[419861787,1775431843832,-151.0,0.00014504,2]
[419861788,1775431843842,-151.0,0.00014504,2]
[419861789,1775431843853,-151.258971,0.00014504,2]
[419861790,1775431843863,-1000.0,0.00014521,2]
[419861791,1775431843872,-408.74,0.00014523,2]
[419861792,1775431843882,-690.08576007,0.00014541,2]
[419861793,1775431843892,-4002.0,0.00014551,2]
[419861794,1775431843902,-500.0,0.00014588,2]
[419861795,1775431843912,-500.0,0.00014588,2]
[419861796,1775431843921,-881.74,0.00014612,2]
[419861797,1775431843931,-166.66,0.00014627,2]
[419861798,1775431843941,-150.0,0.00014629,2]
[419861799,1775431843953,-332.12,0.00014649,2]
[419861800,1775431843963,-150.0,0.00014667,2]
[419861801,1775431843973,-150.0,0.00014667,2]
[419861802,1775431843983,-150.0,0.00014667,2]
[419861803,1775431843993,-1600.0,0.00014693,2]
[419861804,1775431844002,-1572.0,0.0001472,2]
[419861805,1775431844012,-1572.0,0.0001472,2]
[419861806,1775431844022,-408.74539053,0.00014733,2]
[419861807,1775431844031,-4966.13784176,0.00014768,2]
[419861808,1775431844041,-1492.7776284,0.00014768,2]
[419861809,1775431844051,-1500.0,0.00014795,2]
[419861810,1775431844061,-1500.0,0.00014795,2]
[419861811,1775431844071,-1500.0,0.00014795,2]
[419861812,1775431844080,-1500.0,0.00014795,2]
[419861813,1775431844089,-1500.0,0.00014795,2]
[419861814,1775431844099,-245.719357,0.00014795,2]
[419861815,1775431844110,-245.719357,0.00014795,2]
[419861816,1775431844120,-245.719357,0.00014795,2]
[419861817,1775431844130,-245.719357,0.00014795,2]
[419861818,1775431844140,-162.099628,0.00014795,2]
[419861819,1775431844149,-162.099628,0.00014795,2]
[419861820,1775431844159,-162.099628,0.00014795,2]
[419861821,1775431844169,-162.099628,0.00014795,2]
[419861822,1775431844179,-151.0,0.00014795,2]
[419861823,1775431844189,-151.0,0.00014795,2]
[419861824,1775431844200,-150.0,0.000148,2]
[419861825,1775431844210,-150.0,0.000148,2]
[419861826,1775431844222,-150.0,0.00014857,2]
[419861827,1775431844231,-3100.0,0.00014863,2]
[419861828,1775431844241,-957.76,0.00014886,2]
[419861829,1775431844252,-4002.0,0.000149,2]
[419861830,1775431844262,-150.0,0.00014933,2]
[419861831,1775431844272,-150.0,0.00014933,2]
[419861832,1775431844281,-150.0,0.00014933,2]
[419861833,1775431844291,-150.0,0.00014933,2]
[419861834,1775431844300,-150.0,0.00014968,2]
[419861835,1775431844310,-150.0,0.00014991,2]
[419861836,1775431844320,-175.32,0.00015,2]
[419861837,1775431844330,-811.26,0.00015,2]
[419861838,1775431844340,-202.81,0.00015,2]
[419861839,1775431844350,-300.0,0.00015,2]
[419861840,1775431844360,-162.3905,0.00015,2]
[419861841,1775431844370,-162.3905,0.00015,2]
[419861842,1775431844380,-162.3905,0.00015,2]
[419861843,1775431844390,-162.3905,0.00015,2]
[419861844,1775431844400,-162.3905,0.00015,2]
[419861845,1775431844410,-162.3905,0.00015,2]
[419861846,1775431844420,-162.3905,0.00015,2]
[419861847,1775431844430,-162.3905,0.00015,2]
[419861848,1775431844440,-162.3905,0.00015,2]
[419861849,1775431844452,-162.3905,0.00015,2]
[419861850,1775431844462,-162.3905,0.00015,2]
[419861851,1775431844472,-162.3905,0.00015,2]
[419861852,1775431844482,-162.3905,0.00015,2]
[419861853,1775431844493,-162.3905,0.00015,2]
[419861854,1775431844503,-162.3905,0.00015,2]
[419861855,1775431844513,-162.3905,0.00015,2]
[419861856,1775431844523,-162.3905,0.00015,2]
[419861857,1775431844533,-162.3905,0.00015,2]
[419861858,1775431844543,-162.3905,0.00015,2]
[419861859,1775431844553,-162.3905,0.00015,2]
[419861860,1775431844563,-162.3905,0.00015,2]
[419861861,1775431844573,-162.3905,0.00015,2]
[419861862,1775431844583,-162.3905,0.00015,2]
[419861863,1775431844593,-162.3905,0.00015,2]
[419861864,1775431844603,-162.3905,0.00015,2]
[419861865,1775431844613,-162.3905,0.00015,2]
[419861866,1775431844623,-500.0,0.00015,2]
[419861867,1775431844633,-500.0,0.00015,2]
[419861868,1775431844643,-500.0,0.00015,2]
[419861869,1775431844653,-500.0,0.00015,2]
[419861870,1775431844662,-500.0,0.00015,2]
[419861871,1775431844671,-500.0,0.00015,2]
[419861872,1775431844681,-500.0,0.00015,2]
[419861873,1775431844690,-500.0,0.00015,2]
[419861874,1775431844702,-500.0,0.00015,2]
[419861875,1775431844711,-500.0,0.00015,2]
[419861876,1775431844720,-500.0,0.00015,2]
[419861877,1775431844730,-500.0,0.00015,2]
[419861878,1775431844740,-500.0,0.00015,2]
[419861879,1775431844751,-199.41,0.00015,2]
[419861880,1775431844761,-500.0,0.00015,2]
[419861881,1775431844771,-468.12,0.00015,2]
[419861882,1775431844780,-212.1509,0.00015,2]
[419861883,1775431844792,-173.569777,0.00015,2]
[419861884,1775431844802,-173.569777,0.00015,2]
[419861885,1775431844811,-173.569777,0.00015,2]
[419861886,1775431844822,-173.569777,0.00015,2]
[419861887,1775431844831,-481.609481,0.00015,2]
[419861888,1775431844841,-151.0,0.00015,2]
[419861889,1775431844852,-151.0,0.00015,2]
[419861890,1775431844861,-481.609481,0.00015,2]
[419861891,1775431844871,-481.609481,0.00015,2]
[419861892,1775431844880,-151.0,0.00015,2]
[419861893,1775431844890,-481.609481,0.00015,2]
[419861894,1775431844901,-151.0,0.00015,2]
[419861895,1775431844911,-1000.0,0.00015011,2]
[419861896,1775431844920,-3100.0,0.00015032,2]
[419861897,1775431844931,-2811.0,0.0001504,2]
[419861898,1775431844940,-3100.0,0.00015064,2]
[419861899,1775431844952,-3272.55,0.00015068,2]
[419861900,1775431844961,-208.900877,0.00015068,2]
[419861901,1775431844971,-208.900877,0.00015068,2]
[419861902,1775431844981,-208.900877,0.00015068,2]
[419861903,1775431844991,-208.900877,0.00015068,2]
[419861904,1775431845001,-900.0,0.00015068,2]
[419861905,1775431845011,-1000.0,0.00015073,2]
[419861906,1775431845022,-500.0,0.00015084,2]
[419861907,1775431845033,-500.0,0.00015084,2]
[419861908,1775431845044,-1377.42282659,0.00015084,2]
[419861909,1775431845055,-500.0,0.00015084,2]
[419861910,1775431845065,-500.0,0.00015084,2]
[419861911,1775431845074,-500.0,0.00015084,2]
[419861912,1775431845084,-500.0,0.00015084,2]
[419861913,1775431845094,-201.93286099,0.00015084,2]
[419861914,1775431845103,-500.0,0.00015084,2]
[419861915,1775431845114,-9211.34798985,0.00015084,2]
[419861916,1775431845123,-500.0,0.00015084,2]
[419861917,1775431845133,-500.0,0.00015084,2]
[419861918,1775431845142,-500.0,0.00015084,2]
[419861919,1775431845153,-500.0,0.00015084,2]
[419861920,1775431845163,-500.0,0.00015084,2]
[419861921,1775431845173,-500.0,0.00015084,2]
[419861922,1775431845183,-3000.0,0.00015084,2]
[419861923,1775431845192,-2500.0,0.00015084,2]
[419861924,1775431845203,-743.50770149,0.00015084,2]
[419861925,1775431845213,-151.0,0.00015084,2]
[419861926,1775431845223,-668.65185757,0.00015084,2]
[419861927,1775431845232,-174.61919141,0.00015084,2]
[419861928,1775431845242,-279.9045709,0.00015084,2]
[419861929,1775431845252,-500.0,0.00015084,2]
[419861930,1775431845262,-170.0,0.00015084,2]
[419861931,1775431845271,-170.0,0.00015084,2]
[419861932,1775431845281,-170.0,0.00015084,2]
[419861933,1775431845291,-170.0,0.00015084,2]
[419861934,1775431845300,-170.0,0.00015084,2]
[419861935,1775431845310,-170.0,0.00015084,2]
[419861936,1775431845320,-170.0,0.00015084,2]
[419861937,1775431845330,-170.0,0.00015084,2]
[419861938,1775431845339,-170.0,0.00015084,2]
[419861939,1775431845349,-170.0,0.00015084,2]
[419861940,1775431845358,-170.0,0.00015084,2]
[419861941,1775431845368,-170.0,0.00015084,2]
[419861942,1775431845378,-150.0,0.00015086,2]
[419861943,1775431845387,-1000.0,0.00015135,2]
[419861944,1775431845397,-1065.40450783,0.00015135,2]
[419861945,1775431845407,-500.0,0.00015139,2]
[419861946,1775431845417,-9552.16786547,0.00015139,2]
[419861947,1775431845427,-151.0,0.00015139,2]
[419861948,1775431845436,-3100.0,0.00015162,2]
[419861949,1775431845446,-1000.0,0.00015166,2]
[419861950,1775431845456,-2958.55545752,0.00015172,2]
[419861951,1775431845465,-1263.0,0.00015192,2]
[419861952,1775431845475,-150.351,0.00015192,2]
[419861953,1775431845485,-1228.181,0.00015192,2]
[419861954,1775431845494,-925.0,0.00015192,2]
[419861956,1775431845504,-6020.0,0.00015192,2]
[419861958,1775431845513,-3544.258,0.00015192,2]
[419861960,1775431845523,-2471.0,0.00015192,2]
[419861961,1775431845532,-500.0,0.00015194,2]
[419861962,1775431845544,-3870.17864596,0.00015194,2]
[419861964,1775431845553,-151.0,0.00015194,2]
[419861966,1775431845563,-150.0,0.000152,2]
[419861967,1775431845573,-150.0,0.000152,2]
[419861968,1775431845582,-150.0,0.000152,2]
[419861969,1775431845592,-150.0,0.000152,2]
[419861970,1775431845601,-150.0,0.000152,2]
[419861972,1775431845610,-150.0,0.000152,2]
[419861974,1775431845620,-150.0,0.000152,2]
[419861976,1775431845629,-690.08576007,0.00015221,2]
[419861977,1775431845639,-3552.0,0.00015224,2]
[419861978,1775431845649,-150.0,0.00015229,2]
[419861979,1775431845660,-5888.0,0.0001523,2]
[419861980,1775431845670,-507.0,0.00015234,3]
[419861981,1775431845679,-332.12,0.00015235,2]
[419861983,1775431845688,-1000.0,0.00015237,2]
[419861985,1775431845700,-1000.0,0.00015238,2]
[419861986,1775431845709,-5888.0,0.00015245,2]
[419861987,1775431845719,-500.0,0.00015249,2]
[419861988,1775431845729,-151.0,0.00015249,2]
[419861989,1775431845738,-162.0,0.00015259,2]
[419861990,1775431845747,-3552.0,0.00015288,2]
[419861991,1775431845758,-500.0,0.00015304,2]
[419861992,1775431845767,-151.0,0.00015304,2]
[419861993,1775431845777,-250.0,0.00015311,2]
[419861994,1775431845787,-250.0,0.00015311,2]
[419861995,1775431845797,-250.0,0.00015311,2]
[419861996,1775431845806,-250.0,0.00015311,2]
[419861997,1775431845817,-250.0,0.00015311,2]
[419861998,1775431845827,-250.0,0.00015311,2]
[419861999,1775431845837,-250.0,0.00015311,2]
[419862000,1775431845847,-250.0,0.00015311,2]
[419862001,1775431845856,-334.0,0.00015311,2]
[419862002,1775431845866,-150.0,0.00015314,2]
[419862003,1775431845876,-177.0,0.00015327,2]
[419862004,1775431845886,-4966.13784176,0.00015334,2]
[419862005,1775431845896,-1492.7776284,0.00015334,2]
[419862006,1775431845906,-3430.56,0.00015335,2]
[419862007,1775431845915,-204.690244,0.00015339,2]
[419862008,1775431845925,-844.02569489,0.00015342,2]
[419862009,1775431845934,-2000.0,0.00015342,2]
[419862010,1775431845944,-2000.0,0.00015342,2]
[419862011,1775431845955,-2011.94070983,0.00015342,2]
[419862012,1775431845965,-500.0,0.00015359,2]
[419862013,1775431845974,-151.0,0.00015359,2]
[419862014,1775431845984,-1572.0,0.0001536,2]
[419862015,1775431845994,-379.92378165,0.00015363,2]
[419862016,1775431846004,-742.0,0.00015363,2]
[419862017,1775431846013,-153.0,0.00015363,2]
[419862018,1775431846024,-1332.0,0.00015363,2]
[419862019,1775431846033,-6996.0,0.00015363,2]
[419862020,1775431846043,-3355.0,0.00015363,2]
[419862021,1775431846052,-1443.0,0.00015363,2]
[419862022,1775431846062,-1099.0,0.00015363,2]
[419862023,1775431846071,-500.0,0.0001537,2]
[419862024,1775431846081,-512.60947705,0.000154,2]
[419862025,1775431846449,-500.0,0.00015414,2]
[419862026,1775431846460,-151.0,0.00015414,2]
[419862027,1775431846471,-500.0,0.00015419,2]
[419862028,1775431846481,-10000.0,0.0001542,2]
[419862029,1775431846491,-150.0,0.00015421,2]
[419862030,1775431846500,-150.0,0.00015422,2]
[419862031,1775431846511,-5888.0,0.00015457,2]
[419862032,1775431846520,-150.0,0.00015467,2]
[419862033,1775431846531,-150.0,0.00015467,2]
[419862034,1775431846541,-150.0,0.00015467,2]
[419862035,1775431846551,-150.0,0.00015467,2]
[419862036,1775431846562,-500.0,0.00015469,2]
[419862037,1775431846571,-151.0,0.00015469,2]
[419862038,1775431846580,-2304.189,0.00015471,2]
[419862039,1775431846589,-181.001,0.00015471,2]
[419862040,1775431846599,-3552.0,0.00015489,2]
[419862041,1775431846610,-1661.34286454,0.000155,3]
[419862042,1775431846620,-5643.7200837,0.000155,3]
[419862043,1775431846629,-1231.52674065,0.000155,2]
[419862044,1775431846639,-1000.0,0.000155,2]
[419862045,1775431846648,-4000.0,0.00015507,2]
[419862046,1775431846659,-1000.0,0.00015516,2]
[419862047,1775431846670,-500.0,0.00015524,2]
[419862048,1775431846680,-151.0,0.00015524,2]
[419862049,1775431846691,-350.0,0.00015542,2]
[419862050,1775431846701,-150.0,0.00015543,2]
[419862051,1775431846711,-5888.0,0.00015545,2]
[419862052,1775431846721,-195.40117704,0.00015566,2]
[419862053,1775431846732,-500.0,0.00015579,2]
[419862054,1775431846742,-151.0,0.00015579,2]
[419862055,1775431846751,-998.0,0.00015579,2]
[419862056,1775431846760,-150.0,0.00015599,2]
[419862057,1775431846769,-150.0,0.00015599,2]
[419862058,1775431846778,-150.0,0.00015599,2]
[419862059,1775431846789,-150.0,0.000156,2]
[419862060,1775431846800,-150.0,0.000156,2]
[419862061,1775431846810,-315.94705361,0.00015604,2]
[419862062,1775431846819,-175.80496381,0.00015605,2]
[419862063,1775431846830,-194.89935161,0.00015605,2]
[419862064,1775431846840,-269.79021698,0.00015605,2]
[419862065,1775431846850,-171.79691592,0.00015605,2]
[419862066,1775431846859,-183.64961433,0.00015612,2]
[419862067,1775431846869,-248.61536943,0.00015628,2]
[419862068,1775431846878,-155.19654635,0.00015629,2]
[419862069,1775431846888,-1428.38747117,0.00015632,2]
[419862070,1775431846898,-209.40437684,0.00015632,2]
[419862071,1775431846907,-771.01748645,0.00015632,2]
[419862072,1775431846917,-693.3919763,0.00015632,2]
[419862073,1775431846926,-181.08010149,0.00015632,2]
[419862074,1775431846935,-290.26104003,0.00015632,2]
[419862075,1775431846945,-500.0,0.00015634,2]
[419862076,1775431846955,-151.0,0.00015634,2]
[419862077,1775431846964,-733.77686062,0.00015634,2]
[419862078,1775431846973,-785.67,0.00015651,2]
[419862079,1775431846984,-435.2,0.00015654,2]
[419862080,1775431846995,-150.0,0.00015662,2]
[419862081,1775431847005,-3552.0,0.00015668,2]
[419862082,1775431847015,-3552.0,0.00015675,2]
[419862083,1775431847025,-1252.0,0.00015677,2]
[419862084,1775431847037,-1504.51109564,0.0001568,2]
[419862085,1775431847048,-5888.0,0.00015682,2]
[419862086,1775431847059,-1500.0,0.00015683,2]
[419862087,1775431847069,-151.0,0.00015684,2]
[419862088,1775431847080,-161.017728,0.00015684,2]
[419862089,1775431847092,-600.84,0.00015684,2]
[419862090,1775431847104,-1122.97,0.00015684,2]
[419862091,1775431847114,-3555.93,0.00015684,2]
[419862092,1775431847125,-687.39990392,0.00015686,2]
[419862093,1775431847135,-923.51400547,0.00015686,2]
[419862094,1775431847145,-500.0,0.00015689,2]
[419862095,1775431847155,-151.0,0.00015689,2]
[419862096,1775431847165,-150.0,0.00015697,2]
[419862097,1775431847174,-2000.0,0.0001572,2]
[419862098,1775431847184,-2000.0,0.0001572,2]
[419862099,1775431847193,-2000.0,0.0001572,2]
[419862100,1775431847202,-150.0,0.00015731,2]
[419862101,1775431847211,-150.0,0.00015733,2]
[419862102,1775431847221,-150.0,0.00015733,2]
[419862103,1775431847232,-150.0,0.00015733,2]
[419862104,1775431847242,-500.0,0.00015746,2]
[419862105,1775431847252,-200.0,0.00015746,2]
[419862106,1775431847262,-500.0,0.00015747,2]
[419862107,1775431847271,-500.0,0.00015747,2]
[419862108,1775431847282,-500.0,0.00015747,2]
[419862109,1775431847292,-500.0,0.00015747,2]
[419862110,1775431847302,-200.0,0.00015747,2]
[419862111,1775431847313,-200.0,0.00015747,2]
[419862112,1775431847322,-383.7002925,0.0001575,2]
[419862113,1775431847332,-262.0,0.00015753,2]
[419862114,1775431847342,-3272.55,0.00015753,2]
[419862115,1775431847351,-150.0,0.00015766,2]
[419862116,1775431847361,-150.0,0.00015771,2]
[419862117,1775431847371,-150.0,0.000158,2]
[419862118,1775431847380,-158.95757929,0.00015808,2]
[419862119,1775431847389,-250.0,0.00015808,2]
[419862120,1775431847399,-250.0,0.00015808,2]
[419862121,1775431847408,-2000.0,0.0001581,2]
[419862122,1775431847418,-332.12,0.00015821,2]
[419862123,1775431847427,-396.21006678,0.00015822,2]
[419862124,1775431847437,-355.46084923,0.00015822,2]
[419862125,1775431847446,-204.690244,0.00015824,2]
[419862126,1775431847456,-535.24003295,0.00015826,2]
[419862127,1775431847466,-47002.92136334,0.0001584,2]
[419862128,1775431847475,-245.719357,0.0001584,2]
[419862129,1775431847485,-245.719357,0.0001584,2]
[419862130,1775431847495,-245.719357,0.0001584,2]
[419862131,1775431847504,-245.719357,0.0001584,2]
[419862132,1775431847513,-208.900877,0.0001584,2]
[419862133,1775431847522,-208.900877,0.0001584,2]
[419862134,1775431847532,-162.099628,0.0001584,2]
[419862135,1775431847542,-208.900877,0.0001584,2]
[419862136,1775431847551,-162.099628,0.0001584,2]
[419862137,1775431847560,-208.900877,0.0001584,2]
[419862138,1775431847570,-162.099628,0.0001584,2]
[419862139,1775431847579,-162.099628,0.0001584,2]
[419862140,1775431847589,-151.0,0.0001584,2]
[419862141,1775431847598,-151.0,0.0001584,2]
[419862142,1775431847608,-173.569777,0.0001584,2]
[419862143,1775431847618,-173.569777,0.0001584,2]
[419862144,1775431847627,-173.569777,0.0001584,2]
[419862145,1775431847637,-173.569777,0.0001584,2]
[419862146,1775431847646,-151.0,0.0001584,2]
[419862147,1775431847656,-481.609481,0.0001584,2]
[419862148,1775431847665,-481.609481,0.0001584,2]
[419862149,1775431847675,-481.609481,0.0001584,2]
[419862150,1775431847684,-151.0,0.0001584,2]
[419862151,1775431847694,-481.609481,0.0001584,2]
[419862153,1775431847704,-151.0,0.0001584,2]
[419862155,1775431847714,-1337.87763051,0.00015847,2]
[419862157,1775431847724,-1937.75,0.00015862,2]
[419862159,1775431847733,-2000.0,0.00015874,2]
[419862161,1775431847742,-2000.0,0.00015874,2]
[419862163,1775431847752,-2000.0,0.00015874,2]
[419862165,1775431847762,-5888.0,0.00015875,2]
[419862167,1775431847772,-500.0,0.0001589,2]
[419862169,1775431847780,-646.23458086,0.0001589,2]
[419862170,1775431847789,-2000.0,0.0001589,2]
[419862172,1775431847798,-2500.0,0.0001589,2]
[419862174,1775431847808,-2500.0,0.0001589,2]
[419862176,1775431847817,-5800.0,0.00015891,2]
[419862178,1775431847827,-4000.0,0.00015895,2]
[419862180,1775431847836,-154.32469594,0.00015897,2]
[419862182,1775431847845,-500.0,0.00015899,2]
[419862183,1775431847855,-361.74,0.00015899,2]
[419862184,1775431847864,-31163.63075239,0.00015899,2]
[419862186,1775431847874,-162.0,0.00015899,2]
[419862189,1775431847885,-500.0,0.00015899,2]
[419862190,1775431847894,-2655.00067454,0.000159,2]
[419862193,1775431847904,-375.0206199,0.000159,2]
[419862195,1775431847913,-3648.46348016,0.000159,2]
[419862197,1775431847922,-690.08576007,0.000159,2]
[419862199,1775431847931,-258.04426766,0.000159,2]
[419862201,1775431847940,-5800.0,0.000159,2]
[419862203,1775431847950,-313.0,0.000159,2]
[419862205,1775431847959,-878.0,0.000159,2]
[419862207,1775431847968,-2958.55545752,0.000159,2]
[419862209,1775431847977,-306.0,0.000159,2]
[419862211,1775431847986,-287.26243403,0.000159,2]
[419862213,1775431847995,-210.48799529,0.000159,2]
[419862215,1775431848004,-4966.13784176,0.000159,2]
[419862217,1775431848013,-4535.74069953,0.000159,2]
[419862219,1775431848022,-1492.7776284,0.000159,2]
[419862221,1775431848031,-222.80843458,0.000159,2]
[419862223,1775431848040,-1816.34421589,0.00015901,2]
[419862225,1775431848049,-435.21302299,0.00015917,2]
[419862227,1775431848058,-350.0,0.00015922,2]
[419862229,1775431848068,-555.16,0.00015925,2]
[419862231,1775431848077,-264.0,0.0001593,2]
[419862233,1775431848087,-835.85502341,0.00015932,2]
[419862235,1775431848096,-366.3544055,0.00015933,2]
[419862237,1775431848105,-5888.0,0.00015943,2]
[419862239,1775431848114,-4609.0,0.00015954,2]
[419862241,1775431848123,-3552.0,0.00015956,2]
[419862243,1775431848132,-172.68306023,0.00015974,2]
[419862245,1775431848141,-302.97675299,0.00015984,2]
[419862247,1775431848150,-571.26306914,0.00015984,2]
[419862249,1775431848160,-245.07438677,0.00015984,2]
[419862251,1775431848170,-500.0,0.0001599,2]
[419862253,1775431848179,-167.8142876,0.0001599,2]
[419862255,1775431848188,-167.8142876,0.0001599,2]
[419862257,1775431848198,-204.690244,0.00015997,2]
[419862260,1775431848207,-389.02,0.00015998,2]
[419862262,1775431848217,-1032.72554709,0.00015998,5]
[419862264,1775431848226,-666.0,0.00015999,2]
[419862266,1775431848235,-666.0,0.00015999,2]
[419862268,1775431848244,-666.0,0.00015999,2]
[419862270,1775431848254,-1032.72554708,0.00015999,5]
[419862272,1775431848263,-6000.0000009,0.00015999,2]
[419862274,1775431848272,-500.0,0.00015999,2]